Cogmind - Beta 16 @@@ ROGUE MODE // 2026.02.01 @ 18:26:05 Player: ILikeVoltron Result: Destroyed by G-47 Trooper with Particle Gun Performance ------------- Evolutions (2) 1000 Regions Visited (3) 600 Robots Destroyed (82) 410 Value Destroyed (1978) 1978 Prototype IDs (1) 20 Alien Tech Used (0) 0 Bonus (0) 0 TOTAL SCORE: 4008 Bonus ------- None Cogmind --------- Core Integrity 0/550 Matter 236/300 Energy 20/100 System Corruption 0% Temperature Cool (9) Movement Core (450) Ox8 Location -8/Materials Parts ------- > --- POWER (1) -------- (None) > --- PROPULSION (4) --- (None) > --- UTILITY (4) ------ Cooling System Large Storage Unit Improved Terrain Scanner > --- WEAPON (2) ------- Medium Laser Medium Laser > --- INVENTORY (15) --- Improved Ion Engine Advanced Heat Sink High-capacity Storage Unit Large Matter Pod (150) Light Armor Plating System Shield Improved Assault Rifle Peak State ------------ > --- POWER ------------ Deuterium Engine > --- PROPULSION ------- Aluminum Leg Aluminum Leg Improved Aluminum Leg Improved Aluminum Leg > --- UTILITY ---------- Large Storage Unit Machine Analyzer Improved Terrain Scanner Seismic Detector > --- WEAPON ----------- Improved Assault Rifle Improved Assault Rifle > --- INVENTORY -------- Light Ion Engine Aluminum Leg Cooling System High-capacity Storage Unit Large Matter Pod System Shield Medium Laser Medium Laser Medium Laser Medium Laser Medium Laser Medium Laser Rocket Launcher [Rating: 24] Favorites ----------- Power Light Ion Engine Engine Light Ion Engine Propulsion Aluminum Leg Leg Aluminum Leg Utility Large Storage Unit Device Improved Terrain Scanner Storage Large Storage Unit Processor Machine Analyzer Protection Light Armor Plating Weapon Improved Assault Rifle Energy Gun Medium Laser Ballistic Gun Improved Assault Rifle Launcher Rocket Launcher Build | -11 -10 -9 -8 ------- Run | Yrd Mat Mat Mat Slots Evolved 4 | . . 2 2 Power . | . . . . Propulsion 2 | . . 2 . Utility 2 | . . . 2 Weapon . | . . . . Parts Attached 40 | 2 12 10 16 Power 4 | . 1 1 2 Engine 4 | . 1 1 2 Core . | . . . . Reactor . | . . . . Propulsion 11 | . 3 4 4 Treads . | . . . . Leg 11 | . 3 4 4 Wheel . | . . . . Hover . | . . . . Flight . | . . . . Utility 8 | 2 1 2 3 Device 4 | 2 . 1 1 Storage 2 | . 1 1 . Processor 1 | . . . 1 Hackware . | . . . . Protection 1 | . . . 1 Artifact . | . . . . Weapon 17 | . 7 3 7 Energy Gun 7 | . 1 . 6 Energy Cannon . | . . . . Ballistic Gun 9 | . 6 3 . Ballistic Cannon . | . . . . Launcher 1 | . . . 1 Special Weapon . | . . . . Impact Weapon . | . . . . Slashing Weapon . | . . . . Piercing Weapon . | . . . . Special Melee Weapon . | . . . . Unidentified Prototypes 1 | . . 1 . Parts Lost 24 | . 2 2 20 Power 5 | . 1 1 3 Propulsion 8 | . . . 8 Utility 4 | . . 1 3 Weapon 7 | . 1 . 6 Highest Loss Streak 5 | . 2 1 5 To Critical Strikes 1 | . . . 1 Average Backups 12 | 7 9 14 12 Power . | 1 1 . . Propulsion 2 | 4 3 1 . Utility 3 | 1 3 3 4 Weapon 5 | 1 1 7 5 Tool/Special . | . . . . Unused Backups 20 | 6 5 2 7 Power 4 | 1 1 . 2 Propulsion 7 | 2 4 1 . Utility 7 | 1 . 1 5 Weapon 2 | 2 . . . Tool/Special . | . . . . Average Slot Usage (%) 92 | . 96 98 82 Engine 10 | . 13 10 7 Leg 33 | . 26 43 24 Device 13 | . 14 10 17 Storage 10 | . 14 11 9 Processor 1 | . . . 4 Energy Gun 2 | . 1 . 6 Ballistic Gun 17 | . 24 21 8 Peak Build Rating 24 | 8 8 18 24 Average Rating 14 | 7 7 16 17 On Entrance 10 | 6 8 8 18 Avg Prop Armor Cover (%) . | . . . . Naked Turns . | . . . . Heaviest Build 38 | 12 17 30 38 Greatest Support 46 | 20 20 43 46 Greatest Overweight (x) 8 | . 1 . 8 Average Overweight (x) . | . . . . Largest Inventory Capacity 15 | 8 10 15 15 Average Capacity 13 | 8 9 14 15 Most Carried 15 | 8 10 15 15 Average Carried 12 | 7 9 14 12 Final Capacity 15 | 8 10 15 15 Final Carried 15 | 8 10 15 7 Class Distribution -------------------- 59% | Scavenger-Mutant 40% | Mutant Dominant Class ---------------- Mutant | -10/Materials Scavenger-Mutant | -9/Materials Scavenger-Mutant | -8/Materials Resources | -11 -10 -9 -8 ----------- Run | Yrd Mat Mat Mat Matter Collected 1501 | 328 379 427 367 Remotely 560 | 129 375 56 . Salvage Created 2458 | 212 427 868 951 Parts 169 | 15 42 65 47 Haulers Intercepted 3 | . 1 2 . Recyclers Shooed 1 | . 1 . . Parts Field Recycled . | . . . . Retrieved Matter . | . . . . Parts Self-Destructed . | . . . . Prevented . | . . . . Parts Restored . | . . . . Kills | -11 -10 -9 -8 ------- Run | Yrd Mat Mat Mat Combat Hostiles Destroyed 50 | . 11 17 22 Guns 39 | . 11 17 11 AOE 10 | . . . 10 Classes Destroyed 13 | 3 5 4 1 Worker 6 | 1 1 2 2 Builder 4 | . . 2 2 Tunneler 5 | 5 . . . Hauler 3 | . 1 2 . Recycler 3 | 1 1 . 1 Mechanic 1 | . . 1 . Operator 3 | . 1 1 1 Watcher 7 | . 2 4 1 Swarmer 15 | . 8 7 . Grunt 27 | . 3 7 17 Duelist 1 | . . 1 . Sentry 6 | . . 2 4 Hunter 1 | . . . 1 Best Kill Streak 10 | 4 8 8 10 Combat Bots Only 8 | . 6 5 8 Max Kills in Single Turn 4 | 1 1 2 4 Gunslinging 1 | . . 1 . Exploded 2 | . . . 2 Melee . | . . . . Uniques/NPCs Destroyed . | . . . . Combat | -11 -10 -9 -8 -------- Run | Yrd Mat Mat Mat Hostile Shots Fired 316 | . 76 65 175 Missed 92 | . 20 23 49 Hits 224 | . 56 42 126 Projectile 224 | . 56 42 126 Critical Strikes 9 | . 1 . 8 Damage Taken 2949 | . 494 457 1998 Core 755 | . 141 64 550 Absorbed by Shields . | . . . . Core Remaining (%) 75 | 100 43 84 . Volleys Fired 188 | 27 40 56 65 Largest 2 | 2 2 2 2 Hottest 100 | 40 60 46 100 Shots Fired 361 | 54 70 113 124 Gun 341 | 54 70 113 104 Cannon . | . . . . Launcher 20 | . . . 20 Special . | . . . . Kinetic 262 | 54 60 113 35 Thermal 79 | . 10 . 69 Explosive 20 | . . . 20 Electromagnetic . | . . . . Robot Hit Streak 19 | 5 9 10 19 Robot Miss Streak 5 | 3 3 5 5 Penetration Max . | . . . . Secondary Targets 7 | . 2 3 2 Max Gunslinging Chain 1 | . 1 1 1 Shots Hit Robots 235 | 28 46 72 89 Core Hits 145 | 13 24 38 70 Critical Kills 1 | 1 . . . Critical Parts Destroyed 1 | . . 1 . Critical Strikes 6 | 1 . 1 4 Burn 4 | . . . 4 Destroy 2 | 1 . 1 . Melee Attacks . | . . . . Impact . | . . . . Slashing . | . . . . Piercing . | . . . . Sneak Attacks . | . . . . Combat Hostiles . | . . . . Follow-up Attacks . | . . . . Damage Inflicted 4583 | 316 490 1174 2603 Guns 2993 | 316 490 1165 1022 Cannons . | . . . . Explosions 1579 | . . . 1579 Melee . | . . . . Ramming 11 | . . 9 2 Kinetic 2189 | 316 415 1165 293 Thermal 804 | . 75 . 729 Explosive 1579 | . . . 1579 Electromagnetic . | . . . . Impact . | . . . . Slashing . | . . . . Piercing . | . . . . Highest Corruption 1 | . . 1 . Average Corruption 1 | . . 1 . Corruption Purged . | . . . . Corruption Blocked . | . . . . Effects 2 | . . 2 . Matter Fused 1 | . . 1 . Misfires 1 | . . 1 . Overload Shots . | . . . . Overflow Damage 7 | . . . 7 Projectiles . | . . . . Explosions 7 | . . . 7 Melee . | . . . . Knockbacks . | . . . . Impact . | . . . . Kinetic . | . . . . Secondary . | . . . . Self-Inflicted Damage . | . . . . Shots . | . . . . Rammed . | . . . . Targets Rammed 2 | . . 1 1 Kicked 2 | . . 1 1 Crushed . | . . . . Highest Temperature 24 | . 24 6 20 Average Temperature 7 | . 10 1 7 Received Heat Transfer 1350 | . 66 177 1107 Siege Activations . | . . . . Martial Activations . | . . . . Shielding Activations . | . . . . Robots Disrupted . | . . . . Combat Hostiles . | . . . . Robots Corrupted . | . . . . Combat Hostiles . | . . . . Parts Fried . | . . . . Impact Corruptions . | . . . . Robots Melted 1 | . . . 1 Combat Hostiles 1 | . . . 1 Parts Melted 9 | . 1 . 8 Heat Transferred 2617 | . 175 . 2442 Parts Sabotaged . | . . . . Parts Stolen . | . . . . Parts Stripped . | . . . . Power Chain Reactions . | . . . . Alert | -11 -10 -9 -8 ------- Run | Yrd Mat Mat Mat Maximum Alert Level 1 | . . 1 1 Low Security (%) 76 | 100 100 78 53 Level 1 23 | . . 21 46 Level 2 . | . . . . Level 3 . | . . . . Level 4 . | . . . . Level 5 . | . . . . High Security . | . . . . Max Security . | . . . . Peak Influence 362 | 15 176 241 362 Initial 87 | . 3 70 87 Average 106 | 3 48 94 179 Influence Increases 1686 | 35 343 504 804 Destroy 0b10 Robot/C 1000 | . 220 340 440 Destroy 0b10 Robot/NC 160 | 35 30 60 35 Destroy Leader 240 | . 46 82 112 Successful Hack 49 | . 17 6 26 Disable Machine 30 | . . . 30 Destroy Structure 102 | . . 1 101 Partial Spotted 15 | . . . 15 Lose Combat Pursuer 90 | . 30 15 45 Influence Decreases 1439 | 30 180 465 764 Entered New Map 220 | . 2 98 120 Time Decay 829 | 30 158 347 294 Lost Part 240 | . 20 20 200 Purge Threat 150 | . . . 150 Squads Dispatched 5 | . 1 1 3 Investigation 2 | . 1 1 . Extermination . | . . . . Reinforcement 3 | . . . 3 Assault . | . . . . Garrison . | . . . . Intercept . | . . . . Searches Triggered . | . . . . Construction Impeded 1 | . . . 1 Haulers Reinforced . | . . . . Active Scanning Responses . | . . . . Cargo Convoy Interrupts . | . . . . Stealth | -11 -10 -9 -8 --------- Run | Yrd Mat Mat Mat Distress Signals 2 | . . . 2 Communications Jammed . | . . . . Distress Signals . | . . . . Times Spotted 80 | . 19 26 35 Peak Tracking Total 8 | . 4 5 8 Tactical Retreats 3 | . 1 1 1 Traps | -11 -10 -9 -8 ------- Run | Yrd Mat Mat Mat Traps Triggered 4 | . 3 1 . Indirectly . | . . . . Trap Hack Attempts . | . . . . Triggered . | . . . . Disarmed . | . . . . Reprogrammed . | . . . . Reused . | . . . . Traps Extracted . | . . . . Installed . | . . . . Triggered . | . . . . Machines | -11 -10 -9 -8 ---------- Run | Yrd Mat Mat Mat Machines Disabled 2 | . . . 2 Max in Single Turn 2 | . . . 2 Machines Repaired . | . . . . Machines Dismantled . | . . . . Machines Sabotaged . | . . . . Overloaded Fab Kills . | . . . . Hacking | -11 -10 -9 -8 --------- Run | Yrd Mat Mat Mat Machines Accessed 15 | . 5 5 5 Terminals 12 | . 5 3 4 Fabricators . | . . . . Repair Stations . | . . . . Recycling Units 1 | . . . 1 Scanalyzers 2 | . . 2 . Garrison Access . | . . . . Total Hacks 38 | . 13 12 13 Successful 23 | . 7 9 7 Failed 15 | . 6 3 6 Catastrophic 1 | . . 1 . Database Lockouts . | . . . . Manual 7 | . 1 1 5 Terminals 28 | . 13 4 11 Fabricators . | . . . . Repair Stations . | . . . . Recycling Units 2 | . . . 2 Scanalyzers 8 | . . 8 . Garrison Access . | . . . . Terminal Hacks 12 | . 6 1 5 Emergency Access Points 1 | . 1 . . Terminal Index 1 | . 1 . . Alert Level 1 | . . . 1 Unreport Threat 1 | . . . 1 Locate Traps 1 | . 1 . . Dispatch Records 1 | . . 1 . Transport Status 1 | . . . 1 Hauler Manifests 2 | . 1 . 1 Registered Components 1 | . 1 . . Zone Layout 2 | . 1 . 1 Fabricator Hacks . | . . . . Repair Station Hacks . | . . . . Recycling Unit Hacks 2 | . . . 2 Report Inventory 1 | . . . 1 Retrieve Components 1 | . . . 1 Scanalyzer 8 | . . 8 . Insert Component 3 | . . 3 . Analyze 3 | . . 3 . Retrieve Study 2 | . . 2 . Garrison Access Hacks . | . . . . Unauthorized Hacks 1 | . 1 . . Terminals 1 | . 1 . . Track 1 | . 1 . . Fabricators . | . . . . Repair Stations . | . . . . Recycling Units . | . . . . Scanalyzers . | . . . . Garrison Access . | . . . . Data Cores Recovered 3 | . 1 1 1 Used 2 | . . 1 1 Hacking Detections 10 | . 4 4 2 Full Trace Events 1 | . . 1 . Feedback Events . | . . . . Feedback Blocked . | . . . . Robot Schematics Acquired . | . . . . Robots Built . | . . . . Authchips . | . . . . Time . | . . . . Total Robot Build Rating . | . . . . Part Schematics Acquired 3 | . . 3 . Parts Built . | . . . . Authchips . | . . . . Time . | . . . . Total Part Build Rating . | . . . . Part Studies Acquired 2 | . . 2 . Parts Repaired . | . . . . Time . | . . . . Parts Recycled . | . . . . Recycled Matter . | . . . . Retrieved Matter . | . . . . Retrieved Components 3 | . . . 3 Parts Scanalyzed 3 | . . 3 . Part Schematics Acquired 3 | . . 3 . Parts Damaged . | . . . . Bothacking | -11 -10 -9 -8 ------------ Run | Yrd Mat Mat Mat Used RIF Installer . | . . . . Robots Hacked . | . . . . Non-combat . | . . . . Combat . | . . . . Robot Hacks Applied . | . . . . Relay Couplers Released . | . . . . Fabnet Peak Effective % . | . . . . Robots Rewired . | . . . . Allies Hacked . | . . . . Hacks Repelled . | . . . . Allies | -11 -10 -9 -8 -------- Run | Yrd Mat Mat Mat Total Allies . | . . . . Largest Group . | . . . . Highest-Rated Group . | . . . . Highest-Rated Ally . | . . . . Total Orders . | . . . . Ally Attacks . | . . . . Total Damage . | . . . . Kills . | . . . . Allies Corrupted . | . . . . Allies Melted . | . . . . Intel | -11 -10 -9 -8 ------- Run | Yrd Mat Mat Mat Active Infowar (turns) 1306 | 6 . 731 569 Terrain 1246 | . . 677 569 Seismic 442 | 6 . 54 382 Machine Analysis 353 | . . . 353 Robot Analysis Total . | . . . . Derelict Logs Recovered . | . . . . Drone Launches . | . . . . Drone Recoveries . | . . . . Exploration | -11 -10 -9 -8 ------------- Run | Yrd Mat Mat Mat Turns Passed 2059 | 132 411 872 644 Spaces Moved 959 | 30 225 445 259 Core 8 | . . . 8 Treads . | . . . . Legs 951 | 30 225 445 251 Wheels . | . . . . Hover . | . . . . Flight . | . . . . Fastest Speed 120 | 120 120 120 120 Average Speed 126 | 120 121 120 142 Slowest Speed 450 | 120 190 120 450 Overloaded Moves . | . . . . Propulsion Burnouts . | . . . . Robots Hopped . | . . . . Potential Cave-ins . | . . . . Cave-ins Triggered . | . . . . Exploration Rate (%) 32 | 3 56 41 31 Regions Visited 3 Branch Regions . Pre-discovered Areas . | . . . . Known Exits Taken . | . . . . Unknown Exits Taken 3 | 1 1 1 . Scrap Searched . | . . . . Spaces Dug . | . . . . Terrain Destroyed 133 | . . . 133 Melee . | . . . . Projectile . | . . . . AOE 133 | . . . 133 Terrain Rammed . | . . . . Walls Destroyed . | . . . . Machines Disabled . | . . . . Actions | -11 -10 -9 -8 --------- Run | Yrd Mat Mat Mat Total 1459 | 76 300 676 407 Wait 223 | 16 12 138 57 Move 956 | 29 224 444 259 Hop . | . . . . Pick Up 27 | 2 5 15 5 Fast Attach 10 | 1 5 1 3 Attach 19 | . 2 4 13 Detach 1 | . . 1 . Swap 15 | 1 5 6 3 Drop 18 | . 7 10 1 Fire 188 | 27 40 56 65 Melee . | . . . . Ram . | . . . . Kick 2 | . . 1 1 Crush . | . . . . Escape Stasis . | . . . . Rewire . | . . . . Trap . | . . . . Miscellaneous . | . . . . Route ------- -11/Scrapyard -10/Materials (discovered 2 exits: *Mat / [*Min]) -9/Materials -8/Materials History --------- Turn | Location | Event 27 | -11/Scrapyard | Discovered new exit (range 3) 133 | -11/Scrapyard | Entered Materials 269 | -10/Materials | Discovered new exit (range 8) 314 | -10/Materials | Build established: Mutant 437 | -10/Materials | Core integrity fell below 50% 537 | -10/Materials | Discovered new exit (range 7) 544 | -10/Materials | Entered another Materials area 544 | -9/Materials | Evolved 2 slots: Propulsion x2 989 | -9/Materials | Build established: Scavenger-Mutant 1396 | -9/Materials | Discovered new exit (range 10) 1416 | -9/Materials | Entered another Materials area 1416 | -8/Materials | Evolved 2 slots: Utility x2 1704 | -8/Materials | Lost 4 parts (3n1w) 1755 | -8/Materials | Destroyed 8 combat bots 1865 | -8/Materials | Lost 5 parts (3n2u) 1963 | -8/Materials | Lost 4 parts (1p1n1u1w) 1975 | -8/Materials | Core integrity fell below 50% 2021 | -8/Materials | Core integrity fell below 20% 2060 | -8/Materials | Destroyed by G-47 Trooper with Particle Gun Last Messages --------------- 02007_ Imp. Ion Engine destroyed. 02007_ G-47 Trooper critical meltdown. 02007_ Switching to secondary target: G-47 Trooper. 02007_ K-01 Serf collects debris. 02013_ Med. Laser+ destroyed. 02015_ R-06 Scavenger collects Lgt. Armor Plating. 02020_ R-06 Scavenger collects Aluminum Leg. 02023_ Med. Laser+ destroyed. 02029_ R-06 Scavenger collects Aluminum Leg. 02030_ Destroyed Lgt. Ion Engine. 02030_ R-06 Scavenger destroyed. 02030_ W-25 Informer destroyed. 02030_ K-01 Serf destroyed. 02030_ G-47 Trooper destroyed. 02030_ Rocket Launcher+ destroyed. 02032_ K-01 Serf collects debris. 02044_ K-01 Serf destroyed. 02047_ K-01 Serf collects debris. 02056_ K-01 Serf destroyed. 02060_ R-06 Scavenger collects Lgt. Ion Engine. Map ----- +----------------------------------------------------+ | ??????????????????????????????????????????# """"" | | ????????????????????????????????########### """"" | | ????????????????????????????????? # """"" | | ????????????????????????????????# [ =# | | ????????????????????????????????# ######## | | ????????????????????????????????# """ ##?????# | | ????????????????????????????????# "" """ #??#?## | | ????????????????????????????#???# " = [ ###### | | ???????????????????????? # ?# **" # | | ????????????????????##?# # # ? * # | | ???????????????????????# # #### ####/######## | | ??????????????? ???????# % | | ???????????????????????# | | ??????????????????????## u | | ??????????????????????##w #####+###### ######+# | | ???????????? ?????????# g # ## # | | ??????? ???? ????????# !=[# """ ## """ | | ??????? ??"???????????# %!!%# %""" ## ## """ | | ?????????????? ##?##??#*=%=!# """ ## ## """ | | ????????????????#?????# =%= # ## ### | | ????????????????????#?# %= ## """ ## #?# * | | ??????######+##########r # """ ## ######## | | ????? # """ ## "#?????? | | ????? %%+ ## T#?????? | | ????? #####/##### "#?????? | | ????????????#######+### @ #???# #???# ##?????# | | ???????????? ????? ??####%#######+##### #??#???? | | ??????????#???? ????????# #?# ## #??????? | | ?????????????"????????### #?# ## ##?????? | | ???????????????? ????#??# #?# # ##????? | | ??????????????"????????## #?# # ##????? | | ????????????? ?? ???????# #?# / T #?????? | | ??????????#??????????#??# ### # #?????? | | ????????????????????????# #?# # #???#?? | | ??????????????????#?????? ??# ## ##????#? | | ???????????????#???????#? ??# ## #??????? | | ???????????????? ?????#?? ??########### #??????? | | ???????????????? ???? ? ? ????#????#??# ##?????? | | ????????????????????? +?? ?????T?? ???# ?????? | | ??????????????????? ????? ???#?????? ?# ##?????? | | ????????????????????????? ????? ??? ??# #??????? | | ????????????????????????????#?????????# #????""" | | ??????????????????????????????????????# #????""" | | ?????????????"""??""""?????????"""????# #????""" | | ????????????""R"??""""?????????"""????# #??????? | | ????????????""?"??""""?????????"""????? ???????? | | ?????????????????????????????????????????????????? | | ?????????????????????????????????????????????????? | | ?????????????????????????????????????????????????? | | ?????????????????????????????????????????????????? | +----------------------------------------------------+ Best States ------------- Heat Dissipation 53 Energy Generation 14 Energy Capacity 275 Matter Stores 300 Matter Capacity 300 Sight Range 16 Terrain Scan Range 16 Terrain Scan Density 10 Armor Coverage 150 Evasion (%) 55 Item Schematics ----------------- Imp. Aluminum Leg | -9/Materials | Scanalyzed Med. Laser | -9/Materials | Scanalyzed Rocket Launcher | -9/Materials | Scanalyzed Robot Schematics ------------------ None Fabricated ------------ Nothing Repaired ---------- Nothing Studied --------- Med. Laser | -9/Materials | Hacked Rocket Launcher | -9/Materials | Hacked Alien Tech Used ----------------- None Achievements -------------- None Challenges ------------ None Game ------ Seed GravitonScatterStripper Manual? 0 Play Time 00:28:51 Cumulative 187.6 hours Start 2026.02.01 @ 15:44:55 End 2026.02.01 @ 18:26:05 Sessions 4 Manual Loads 0 Difficulty Rogue Special Mode None Game No. 311 Rogue 307 Adventurer 0 Explorer 4 Win Type - Total 0 Types 0/0/0/0/0/0/0/0/0/0 Lore% 27 Gallery% 44 Achievement% 30 Wizard Run 0 Options --------- Layout 0 ASCII 0 Keyboard 1 Movement Arrows Keybinds 0 Fullscreen 1 Font 24/Smallcaps Map View 183x50 Zoom Use 0% Tactical HUD 1 Map Filters NONE Filters NONE Steam 1 RUN: cda1f335-c2c7-4b4d-8a78-470b2d907d56